fUST/lending_fUST_20250428
["ID","MTS","AMOUNT","RATE_DAILY","PERIOD"]
[359171019,1745769799037,2000.0,0.00025,30]
[359171025,1745770153010,161.811814,0.00024,30]
[359171027,1745770200919,177.914397,0.00024,30]
[359171060,1745770232171,-2810.99999901,0.000154,2]
[359171061,1745770232180,-2501.837722,0.00016575,2]
[359171062,1745770232191,-152.68707532,0.00017408,2]
[359171065,1745770232201,-1018.05602607,0.00017505,2]
[359171066,1745770232211,-300.0,0.00017506,2]
[359171068,1745770232221,-300.0,0.00017507,2]
[359171070,1745770232231,-300.0,0.00017507,2]
[359171071,1745770232241,-1200.0,0.00017507,2]
[359171072,1745770232250,-18888.18239748,0.00017508,2]
[359171075,1745770232265,-5134.50109337,0.00017508,2]
[359171086,1745770232758,-537.25592188,0.00017507,2]
[359171087,1745770232768,-237.65896906,0.00017507,2]
[359171088,1745770232778,-500.0,0.00017507,2]
[359171089,1745770232788,-25977.31650915,0.00017508,2]
[359171090,1745770232798,-482.80116062,0.00017508,2]
[359171091,1745770232807,-5894.36341938,0.00017509,2]
[359171092,1745770232816,-352.661241,0.00017509,2]
[359171093,1745770232825,-400.0,0.00017603,2]
[359171094,1745770232835,-400.0,0.00017603,2]
[359171095,1745770232844,-400.0,0.00017603,2]
[359171096,1745770232853,-500.0,0.00017603,2]
[359171097,1745770232863,-431.34663186,0.00017603,2]
[359171098,1745770232872,-449.88640921,0.00017603,2]
[359171099,1745770232881,-251.84,0.00017603,2]
[359171100,1745770232890,-500.0,0.00017603,2]
[359171101,1745770232899,-500.0,0.00017603,2]
[359171102,1745770232910,-1121.39,0.00017605,2]
[359171103,1745770232921,-400.0,0.00017605,2]
[359171104,1745770232933,-659.38696141,0.00017608,2]
[359171105,1745770232943,-2881.026898,0.00017608,3]
[359171106,1745770232952,-500.0,0.00017608,2]
[359171107,1745770232962,-500.0,0.00017608,2]
[359171108,1745770232974,-500.0,0.00017608,2]
[359171109,1745770232985,-504.80260837,0.00017608,2]
[359171110,1745770232996,-400.0,0.00017608,2]
[359171111,1745770233006,-500.0,0.00017608,2]
[359171112,1745770233015,-500.0,0.00017608,2]
[359171113,1745770233025,-500.0,0.00017608,2]
[359171114,1745770233035,-510.08358496,0.00017608,2]
[359171115,1745770233045,-500.0,0.00017608,2]
[359171116,1745770233055,-500.0,0.00017608,2]
[359171117,1745770233064,-500.0,0.00017608,2]
[359171118,1745770233075,-500.0,0.00017608,2]
[359171119,1745770233084,-500.0,0.00017608,2]
[359171120,1745770233094,-400.0,0.00017608,2]
[359171121,1745770233103,-436.01,0.00017608,2]
[359171122,1745770233113,-500.0,0.00017608,2]
[359171123,1745770233123,-500.0,0.00017608,2]
[359171124,1745770233132,-505.44133215,0.00017608,2]
[359171125,1745770233142,-500.0,0.00017608,2]
[359171126,1745770233152,-500.0,0.00017608,2]
[359171127,1745770233162,-500.0,0.00017608,2]
[359171128,1745770233171,-500.0,0.00017608,2]
[359171129,1745770233181,-500.0,0.00017608,2]
[359171130,1745770233191,-500.0,0.00017608,2]
[359171131,1745770233200,-500.0,0.00017608,2]
[359171132,1745770233209,-500.0,0.00017608,2]
[359171133,1745770233219,-500.0,0.00017608,2]
[359171134,1745770233229,-500.0,0.00017608,2]
[359171135,1745770233239,-500.0,0.00017608,2]
[359171136,1745770233248,-502.6053553,0.00017608,2]
[359171137,1745770233258,-500.0,0.00017608,2]
[359171138,1745770233268,-500.0,0.00017608,2]
[359171139,1745770233277,-500.0,0.00017608,2]
[359171140,1745770233287,-500.0,0.00017608,2]
[359171141,1745770233306,-500.0,0.00017608,2]
[359171142,1745770233315,-400.0,0.00017608,2]
[359171143,1745770233325,-272.71066396,0.00017608,2]
[359171144,1745770233334,-500.0,0.00017608,2]
[359171145,1745770233344,-500.0,0.00017608,2]
[359171146,1745770233353,-500.0,0.00017608,2]
[359171147,1745770233363,-500.0,0.00017608,2]
[359171148,1745770233373,-500.0,0.00017608,2]
[359171149,1745770233383,-533.68720506,0.00017608,2]
[359171150,1745770233392,-500.0,0.00017608,2]
[359171151,1745770233402,-500.0,0.00017608,2]
[359171152,1745770233412,-500.0,0.00017608,2]
[359171153,1745770233421,-500.0,0.00017608,2]
[359171154,1745770233431,-500.0,0.00017608,2]
[359171155,1745770233441,-511.88245525,0.00017608,2]
[359171156,1745770233450,-500.0,0.00017608,2]
[359171157,1745770233460,-500.0,0.00017608,2]
[359171158,1745770233469,-500.0,0.00017608,2]
[359171159,1745770233479,-500.0,0.00017608,2]
[359171160,1745770233488,-500.0,0.00017608,2]
[359171161,1745770233498,-500.0,0.00017608,2]
[359171162,1745770233508,-500.0,0.00017608,2]
[359171163,1745770233517,-500.0,0.00017608,2]
[359171164,1745770233527,-500.0,0.00017608,2]
[359171165,1745770233538,-500.0,0.00017608,2]
[359171166,1745770233551,-500.0,0.00017608,2]
[359171167,1745770233560,-500.0,0.00017608,2]
[359171168,1745770233570,-500.0,0.00017608,2]
[359171169,1745770233579,-500.0,0.00017608,2]
[359171170,1745770233589,-500.0,0.00017608,2]
[359171171,1745770233599,-500.0,0.00017608,2]
[359171172,1745770233619,-500.0,0.00017608,2]
[359171173,1745770233631,-500.0,0.00017608,2]
[359171174,1745770233641,-500.0,0.00017608,2]
[359171175,1745770233651,-465.10407521,0.00017608,2]
[359171176,1745770233661,-500.0,0.00017608,2]
[359171177,1745770233671,-500.0,0.00017608,2]
[359171178,1745770233681,-500.0,0.00017608,2]
[359171179,1745770233691,-501.02764383,0.00017608,2]
[359171180,1745770233701,-500.0,0.00017608,2]
[359171181,1745770233712,-504.71264789,0.00017608,2]
[359171182,1745770233722,-500.0,0.00017608,2]
[359171183,1745770233732,-500.0,0.00017608,2]
[359171184,1745770233742,-500.0,0.00017608,2]
[359171185,1745770233752,-502.60548878,0.00017608,2]
[359171186,1745770233762,-524.71971966,0.00017608,2]
[359171187,1745770233771,-500.0,0.00017608,2]
[359171188,1745770233781,-500.0,0.00017608,2]
[359171189,1745770233792,-500.0,0.00017608,2]
[359171190,1745770233801,-500.0,0.00017608,2]
[359171191,1745770233811,-500.0,0.00017608,2]
[359171192,1745770233821,-500.0,0.00017608,2]
[359171193,1745770233831,-500.0,0.00017608,2]
[359171194,1745770233841,-500.0,0.00017608,2]
[359171195,1745770233850,-500.0,0.00017608,2]
[359171196,1745770233860,-510.1184224,0.00017608,2]
[359171197,1745770233869,-500.0,0.00017608,2]
[359171198,1745770233879,-500.0,0.00017608,2]
[359171199,1745770233889,-500.0,0.00017608,2]
[359171200,1745770233898,-500.0,0.00017608,2]
[359171201,1745770233908,-500.0,0.00017608,2]
[359171202,1745770233917,-500.0,0.00017608,2]
[359171203,1745770233926,-500.0,0.00017608,2]
[359171204,1745770233936,-500.0,0.00017608,2]
[359171205,1745770233945,-310.69512936,0.00017608,2]
[359171206,1745770233955,-500.0,0.00017608,2]
[359171207,1745770233964,-502.38133378,0.00017608,2]
[359171208,1745770233974,-500.62427233,0.00017608,2]
[359171209,1745770233983,-500.86131784,0.00017608,2]
[359171210,1745770233993,-500.0,0.00017608,2]
[359171211,1745770234003,-500.0,0.00017608,2]
[359171212,1745770234013,-500.0,0.00017608,2]
[359171213,1745770234023,-500.0,0.00017608,2]
[359171214,1745770234033,-500.0,0.00017608,2]
[359171215,1745770234043,-500.0,0.00017608,2]
[359171216,1745770234052,-500.0,0.00017608,2]
[359171217,1745770234061,-500.0,0.00017608,2]
[359171218,1745770234070,-500.0,0.00017608,2]
[359171219,1745770234079,-500.0,0.00017608,2]
[359171220,1745770234089,-500.0,0.00017608,2]
[359171221,1745770234098,-500.0,0.00017608,2]
[359171222,1745770234108,-500.0,0.00017608,2]
[359171223,1745770234117,-500.0,0.00017608,2]
[359171224,1745770234126,-400.0,0.00017608,2]
[359171225,1745770234136,-500.0,0.00017608,2]
[359171226,1745770234145,-500.0,0.00017608,2]
[359171227,1745770234155,-500.0,0.00017608,2]
[359171228,1745770234164,-500.0,0.00017608,2]
[359171229,1745770234173,-151.0,0.00017608,2]
[359171230,1745770234183,-500.0,0.00017608,2]
[359171231,1745770234193,-502.18999274,0.00017608,2]
[359171232,1745770234202,-500.0,0.00017608,2]
[359171233,1745770234212,-500.0,0.00017608,2]
[359171234,1745770234221,-500.0,0.00017608,2]
[359171235,1745770234231,-151.0,0.00017608,2]
[359171236,1745770234240,-500.0,0.00017608,2]
[359171237,1745770234250,-500.0,0.00017608,2]
[359171238,1745770234259,-500.0,0.00017608,2]
[359171239,1745770234268,-501.19815448,0.00017608,2]
[359171240,1745770234278,-500.0,0.00017608,2]
[359171241,1745770234288,-500.0,0.00017608,2]
[359171242,1745770234297,-500.0,0.00017608,2]
[359171243,1745770234307,-151.0,0.00017608,2]
[359171244,1745770234317,-500.0,0.00017608,2]
[359171245,1745770234327,-151.0,0.00017608,2]
[359171246,1745770234336,-500.0,0.00017608,2]
[359171247,1745770234346,-500.0,0.00017608,2]
[359171248,1745770234355,-500.0,0.00017608,2]
[359171249,1745770234365,-500.0,0.00017608,2]
[359171250,1745770234375,-500.0,0.00017608,2]
[359171251,1745770234384,-500.0,0.00017608,2]
[359171252,1745770234393,-500.0,0.00017608,2]
[359171253,1745770234404,-500.0,0.00017608,2]
[359171254,1745770234413,-500.0,0.00017608,2]
[359171255,1745770234423,-500.0,0.00017608,2]
[359171256,1745770234433,-500.0,0.00017608,2]
[359171257,1745770234443,-429.2321733,0.00017608,2]
[359171258,1745770234453,-500.0,0.00017608,2]
[359171259,1745770234462,-500.0,0.00017608,2]
[359171260,1745770234472,-500.0,0.00017608,2]
[359171261,1745770234481,-500.0,0.00017608,2]
[359171262,1745770234491,-500.0,0.00017608,2]
[359171263,1745770234501,-381.6784248,0.00017673,2]
[359171264,1745770234511,-500.0,0.00017673,2]
[359171265,1745770234520,-500.0,0.00017673,2]
[359171266,1745770234529,-500.0,0.00017673,2]
[359171267,1745770234540,-500.0,0.00017673,2]
[359171268,1745770234552,-501.75562334,0.00017673,2]
[359171269,1745770234562,-500.0,0.00017673,2]
[359171270,1745770234573,-500.0,0.00017676,2]
[359171271,1745770234583,-500.0,0.00017676,2]
[359171272,1745770234594,-500.0,0.00017676,2]
[359171273,1745770234604,-502.8468255,0.00017676,2]
[359171274,1745770234614,-321.9458172,0.00017676,2]
[359171275,1745770234625,-508.00080123,0.00017676,2]
[359171276,1745770234636,-500.0,0.00017676,2]
[359171277,1745770234646,-539.62,0.00017676,2]
[359171278,1745770234656,-500.0,0.00017676,2]
[359171279,1745770234665,-500.0,0.00017676,2]
[359171280,1745770234675,-500.0,0.00017676,2]
[359171281,1745770234684,-506.81411466,0.00017676,2]
[359171282,1745770234693,-500.0,0.00017676,2]
[359171283,1745770234703,-500.82081359,0.00017676,2]
[359171284,1745770234712,-500.0,0.00017676,2]
[359171285,1745770234722,-500.0,0.00017676,2]
[359171286,1745770234731,-500.0,0.00017676,2]
[359171287,1745770234741,-400.0,0.00017676,2]
[359171288,1745770234751,-500.0,0.00017676,2]
[359171289,1745770234761,-500.0,0.00017676,2]
[359171290,1745770234770,-500.0,0.00017676,2]
[359171291,1745770234779,-400.0,0.00017676,2]
[359171292,1745770234789,-500.0,0.00017676,2]
[359171293,1745770234799,-500.0,0.00017676,2]
[359171294,1745770234808,-500.0,0.00017676,2]
[359171295,1745770234817,-151.0,0.00017676,2]
[359171296,1745770234827,-500.0,0.00017676,2]
[359171297,1745770234836,-500.0,0.00017676,2]
[359171298,1745770234846,-151.0,0.00017676,2]
[359171299,1745770234855,-500.0,0.00017676,2]
[359171300,1745770234865,-151.0,0.00017676,2]
[359171301,1745770234874,-500.0,0.00017676,2]
[359171302,1745770234884,-151.0,0.00017676,2]
[359171303,1745770234894,-500.0,0.00017676,2]
[359171304,1745770234903,-500.0,0.00017676,2]
[359171305,1745770234913,-500.0,0.00017676,2]
[359171306,1745770234922,-500.0,0.00017678,2]
[359171307,1745770234932,-500.0,0.00017678,2]
[359171308,1745770234941,-500.0,0.00017678,2]
[359171309,1745770234951,-500.0,0.00017678,2]
[359171310,1745770234961,-482.80116059,0.00017699,2]
[359171311,1745770234971,-840.47993636,0.00017725,2]
[359171312,1745770234981,-160.0,0.00017725,2]
[359171313,1745770234991,-421.1409203,0.00017725,2]
[359171314,1745770235000,-400.0,0.00017877,2]
[359171315,1745770235010,-400.0,0.00017877,2]
[359171316,1745770235019,-400.0,0.00017877,2]
[359171317,1745770235028,-1121.39,0.00017879,2]
[359171318,1745770235038,-151.0,0.00017879,2]
[359171319,1745770235047,-151.0,0.00017879,2]
[359171320,1745770235058,-151.0,0.00017879,2]
[359171321,1745770235067,-151.0,0.00017879,2]
[359171322,1745770235077,-151.0,0.00017879,2]
[359171323,1745770235086,-400.0,0.00017879,2]
[359171324,1745770235095,-536.6,0.00017882,2]
[359171325,1745770235104,-300.0,0.00017882,2]
[359171326,1745770235114,-436.01,0.00017882,2]
[359171327,1745770235123,-400.0,0.00017882,2]
[359171328,1745770235132,-400.0,0.00017882,2]
[359171329,1745770235142,-482.80116059,0.00017891,2]
[359171330,1745770235151,-717.0343534,0.000179,2]
[359171331,1745770235160,-303.39,0.0001795,2]
[359171332,1745770235170,-400.0,0.0001795,2]
[359171333,1745770235179,-500.0,0.00017973,2]
[359171334,1745770235189,-500.0,0.00017973,2]
[359171335,1745770235198,-500.0,0.00017973,2]
[359171336,1745770235207,-500.0,0.00017973,2]
[359171337,1745770235217,-500.0,0.00017973,2]
[359171338,1745770235226,-316.43764261,0.00017999,2]
[359171339,1745770235235,-500.0,0.00017999,2]
[359171340,1745770235244,-500.0,0.00017999,2]
[359171341,1745770235253,-500.0,0.00017999,2]
[359171342,1745770235263,-500.0,0.00017999,2]
[359171343,1745770235272,-572.31030495,0.00017999,2]
[359171344,1745770235281,-20687.82416197,0.00018,2]
[359171345,1745770235298,-24863.7214606,0.00018,2]
[359171378,1745770238202,-500.0,0.00017507,2]
[359171380,1745770238213,-138.81323159,0.00017507,2]
[359171389,1745770238350,-361.18676841,0.00017507,2]
[359171390,1745770238359,-319.40220199,0.00017507,2]
[359171612,1745770240680,-180.59779801,0.00017507,2]
[359171614,1745770240690,-202.51420199,0.00017507,2]
[359171862,1745770243314,-297.48579801,0.00017507,2]
[359171867,1745770243329,-500.0,0.00017507,2]
[359171870,1745770243339,-500.0,0.00017507,2]
[359171873,1745770243348,-500.0,0.00017507,2]
[359171874,1745770243357,-615.3382242,0.00017507,2]
[359171876,1745770243367,-500.0,0.00017507,2]
[359171880,1745770243376,-438.6326088,0.00017507,2]
[359171882,1745770243386,-234.73019101,0.00017507,2]
[359172171,1745770246374,-265.26980899,0.00017507,2]
[359172173,1745770246384,-500.0,0.00017507,2]
[359172175,1745770246393,-500.0,0.00017507,2]
[359172177,1745770246403,-597.3537014,0.00017507,2]
[359172179,1745770246413,-500.0,0.00017507,2]
[359172181,1745770246422,-456.30778036,0.00017507,2]
[359172183,1745770246432,-1027.94,0.00017603,2]
[359172185,1745770246442,-500.0,0.00017676,2]
[359172187,1745770246451,-500.0,0.00017676,2]
[359172189,1745770246461,-500.0,0.00017676,2]
[359172192,1745770246472,-1027.94,0.00017877,2]
[359172194,1745770246481,-10536.75351916,0.00018,2]
[359172197,1745770246502,-2224.21,0.00018,2]
[359173031,1745770322652,312.3,0.0002085,15]
[359173080,1745771432352,-453.0139531,0.00016603,2]
[359173081,1745771432362,-297.5968681,0.00016623,2]
[359173082,1745771432371,-160.0,0.00017471,2]
[359173083,1745771432381,-400.0,0.00017601,2]
[359173084,1745771432391,-400.0,0.00017601,2]
[359173085,1745771432401,-242.72468269,0.00017601,2]
[359173086,1745771432410,-400.0,0.00017601,2]
[359173087,1745771432420,-400.0,0.00017601,2]
[359173088,1745771432429,-942.27,0.00017601,2]
[359173090,1745771432438,-500.0,0.00017601,2]
[359173092,1745771432448,-635.97439648,0.00017601,2]
[359173094,1745771432457,-399.70596682,0.00017601,2]
[359173096,1745771432467,-530.14680719,0.00017601,2]
[359173097,1745771432476,-5089.63764465,0.00017602,2]
[359173100,1745771432484,-500.0,0.00017602,2]
[359173102,1745771432493,-500.0,0.00017602,2]
[359173105,1745771432501,-500.0,0.00017602,2]
[359173107,1745771432511,-500.0,0.00017602,2]
[359173109,1745771432520,-500.0,0.00017602,2]
[359173110,1745771432529,-181.91013188,0.00017602,2]
[359173111,1745771432547,-500.0,0.00017602,2]
[359173112,1745771432558,-500.0,0.00017602,2]
[359173114,1745771432568,-500.0,0.00017602,2]
[359173116,1745771432578,-500.0,0.00017602,2]
[359173117,1745771432587,-487.76869511,0.00017602,2]
[359173118,1745771432597,-382.1314834,0.00017602,2]
[359173119,1745771432608,-400.0,0.00017602,2]
[359173120,1745771432618,-14.15521438,0.00017602,2]
[359173122,1745771438358,-485.84478562,0.00017602,2]
[359173124,1745771438368,-500.0,0.00017602,2]
[359173126,1745771438377,-500.0,0.00017602,2]
[359173128,1745771438388,-203.98676903,0.00017602,2]
[359173130,1745771438397,-478.11496538,0.00017602,2]
[359173131,1745771438407,-533.17,0.00017602,2]
[359173132,1745771438417,-274.17,0.00017602,2]
[359173133,1745771438428,-231.64645584,0.00017602,2]
[359173134,1745771438465,-268.35354416,0.00017602,2]
[359173136,1745771438475,-400.0,0.00017602,2]
[359173137,1745771438484,-500.0,0.00017602,2]
[359173138,1745771438494,-500.0,0.00017602,2]
[359173139,1745771438504,-500.0,0.00017602,2]
[359173140,1745771438513,-500.0,0.00017602,2]
[359173142,1745771438522,-500.0,0.00017602,2]
[359173144,1745771438532,-400.0,0.00017602,2]
[359173146,1745771438541,-500.0,0.00017602,2]
[359173147,1745771438551,-500.0,0.00017602,2]
[359173148,1745771438560,-400.0,0.00017602,2]
[359173149,1745771438569,-500.0,0.00017602,2]
[359173150,1745771438578,-500.0,0.00017602,2]
[359173151,1745771438588,-500.0,0.00017602,2]
[359173152,1745771438596,-400.0,0.00017602,2]
[359173153,1745771438606,-500.0,0.00017602,2]
[359173154,1745771438615,-500.0,0.00017602,2]
[359173155,1745771438625,-400.0,0.00017602,2]
[359173156,1745771438636,-500.0,0.00017603,2]
[359173157,1745771438645,-500.0,0.00017603,2]
[359173158,1745771438654,-500.0,0.00017603,2]
[359173159,1745771438664,-193.27352657,0.00017603,2]
[359173160,1745771438674,-376.81800638,0.00017603,2]
[359173229,1745771605661,1000.0,0.00025,30]
[359173231,1745771667856,1000.0,0.00025,30]
[359173259,1745772632437,-661.57116678,0.00016507,2]
[359173260,1745772632450,-522.40161482,0.00016507,2]
[359173261,1745772632494,-280.0959161,0.00016507,2]
[359173262,1745772632504,-71.53961045,0.00016551,2]
[359173267,1745772632549,-935.46038955,0.00016551,2]
[359173270,1745772632559,-400.0,0.00016552,2]
[359173272,1745772632568,-359.94,0.00016552,2]
[359173274,1745772632577,-500.0,0.00016552,2]
[359173276,1745772632586,-500.0,0.00016552,2]
[359173278,1745772632595,-400.0,0.00016552,2]
[359173280,1745772632604,-400.0,0.00016552,2]
[359173282,1745772632613,-903.01,0.00016552,2]
[359173284,1745772632622,-400.01099422,0.00016552,2]
[359173286,1745772632632,-19232.0139552,0.00016553,2]
[359173288,1745772632641,-24687.47422397,0.00016602,2]
[359173290,1745772632650,-3371.6762556,0.00016603,2]
[359173292,1745772632660,-400.0,0.00016826,2]
[359173294,1745772632669,-400.0,0.00016826,2]
[359173296,1745772632678,-400.0,0.00016826,2]
[359173298,1745772632687,-273.34108199,0.00016826,2]
[359173889,1745772638528,-629.66891801,0.00016826,2]
[359173891,1745772638537,-256.4330995,0.000171,2]
[359173893,1745772638547,-400.0,0.000171,2]
[359173895,1745772638556,-400.0,0.000171,2]
[359173897,1745772638565,-903.01,0.000171,2]
[359173899,1745772638574,-500.0,0.00017373,2]
[359173901,1745772638583,-563.38381097,0.00017373,2]
[359173903,1745772638592,-247.05599194,0.00017373,2]
[359173905,1745772638602,-375.78718614,0.00017373,2]
[359173907,1745772638611,-400.0,0.00017374,2]
[359173909,1745772638620,-162.48,0.00017374,2]
[359173911,1745772638629,-903.01,0.00017374,2]
[359173914,1745772638638,-235.97117554,0.00017473,2]
[359173917,1745772638647,-329.6934807,0.00017507,2]
[359173919,1745772638656,-1440.513449,0.00017507,3]
[359173921,1745772638665,-830.64653896,0.00017507,2]
[359173923,1745772638677,-2930.0,0.00017507,2]
[359173926,1745772638699,-406.93863651,0.00017507,2]
[359174394,1745772643628,-33145.72810082,0.00017507,2]
[359175247,1745772842448,224.0,0.00018,10]
[359175264,1745773546235,5037.0,0.00019,10]
[359175650,1745773842841,-201.94896919,0.00016547,2]
[359175652,1745773842850,-225.3349859,0.00016547,2]
[359175654,1745773842859,-500.0,0.00016547,2]
[359175656,1745773842868,-500.0,0.00016547,2]
[359175658,1745773842878,-329.62862943,0.00016547,2]
[359175660,1745773842887,-380.2791052,0.00016547,2]
[359175662,1745773842896,-500.0,0.00016547,2]
[359175664,1745773842905,-500.0,0.00016547,2]
[359175666,1745773842914,-500.0,0.00016547,2]
[359175668,1745773842923,-500.0,0.00016547,2]
[359175670,1745773842936,-500.0,0.00016547,2]
[359175672,1745773842945,-500.0,0.00016547,2]
[359175674,1745773842954,-304.05215767,0.00016547,2]
[359175676,1745773842963,-500.0,0.00016547,2]
[359175678,1745773842971,-500.0,0.00016547,2]
[359175679,1745773842980,-500.0,0.00016547,2]
[359175681,1745773842990,-300.0,0.00016547,2]
[359175683,1745773842999,-15394.61047548,0.00016548,2]
[359175685,1745773843008,-500.0,0.00016549,2]
[359175687,1745773843017,-114.14567713,0.00016549,2]
[359175690,1745773843033,-385.85432287,0.00016549,2]
[359175692,1745773843042,-400.0,0.00016549,2]
[359175694,1745773843051,-400.0,0.00016549,2]
[359175696,1745773843060,-504.31613069,0.00016549,2]
[359175698,1745773843069,-547.12597706,0.00016549,2]
[359175700,1745773843078,-502.0,0.00016549,2]
[359175702,1745773843087,-752.51,0.00016549,2]
[359175704,1745773843097,-400.0,0.00016549,2]
[359175706,1745773843106,-500.0,0.00016549,2]
[359175708,1745773843115,-500.0,0.0001655,2]
[359175710,1745773843123,-500.0,0.0001655,2]
[359175712,1745773843133,-500.0,0.0001655,2]
[359175714,1745773843142,-376.12,0.0001655,2]
[359175716,1745773843152,-500.0,0.0001655,2]
[359175718,1745773843161,-400.0,0.0001655,2]
[359175720,1745773843170,-179.01,0.0001655,2]
[359175722,1745773843179,-400.0,0.0001655,2]
[359175724,1745773843188,-500.0,0.0001655,2]
[359175726,1745773843197,-500.0,0.0001655,2]
[359175728,1745773843206,-400.0,0.0001655,2]
[359175730,1745773843216,-286.67852659,0.0001655,2]
[359176651,1745775031827,-276.1264042,0.00016257,2]
[359176653,1745775031836,-300.0,0.00016321,2]
[359176655,1745775031846,-300.0,0.00016321,2]
[359176656,1745775031855,-1091.1735958,0.00016321,2]
[359176659,1745775031867,-108.8264042,0.00016321,2]
[359176661,1745775031876,-300.0,0.00016321,2]
[359176663,1745775031885,-291.0295958,0.00016322,2]
[359176665,1745775031896,-140.112527,0.00016322,2]
[359176667,1745775031905,-200.45023974,0.00016322,2]
[359176669,1745775031914,-500.0,0.00016322,2]
[359176671,1745775031923,-290.47142896,0.00016322,2]
[359176673,1745775031934,-209.52857104,0.00016322,2]
[359176675,1745775031943,-500.0,0.00016322,2]
[359176677,1745775031952,-346.6366314,0.00016322,2]
[359176679,1745775031962,-1064.31149695,0.00016323,2]
[359176681,1745775031973,-20105.62249905,0.00016323,2]
[359176684,1745775031981,-605.49308896,0.00016323,2]
[359176686,1745775031991,-3243.15088717,0.00016324,2]
[359176874,1745775037863,-1009.98155853,0.00016324,2]
[359176876,1745775037874,-447.42492289,0.00016324,2]
[359176882,1745775037919,-844.19082374,0.00016324,2]
[359176884,1745775037931,-5689.39274415,0.00016324,2]
[359176886,1745775037942,-899.75,0.00016324,2]
[359176889,1745775037953,-4072.61619272,0.00016324,2]
[359176891,1745775037963,-400.0,0.00016438,2]
[359176893,1745775037972,-400.0,0.00016438,2]
[359176895,1745775037981,-185.51893599,0.00016438,2]
[359176897,1745775037990,-721.16,0.00016438,2]
[359176899,1745775037999,-400.0,0.00016438,2]
[359176901,1745775038009,-228.25721349,0.00016438,2]
[359177153,1745775040259,-171.74278651,0.00016438,2]
[359177155,1745775040270,-500.0,0.00016438,2]
[359177157,1745775040279,-400.0,0.00016549,2]
[359177159,1745775040289,-400.0,0.00016549,2]
[359177161,1745775040299,-151.0,0.00016549,2]
[359177163,1745775040308,-151.0,0.00016549,2]
[359177165,1745775040318,-151.0,0.00016549,2]
[359177167,1745775040327,-151.0,0.00016549,2]
[359177169,1745775040336,-151.0,0.00016549,2]
[359177171,1745775040346,-151.0,0.00016549,2]
[359177173,1745775040355,-151.0,0.00016549,2]
[359177174,1745775040363,-151.0,0.00016549,2]
[359177176,1745775040373,-151.0,0.00016549,2]
[359177177,1745775040382,-151.0,0.00016549,2]
[359177178,1745775040392,-151.0,0.00016549,2]
[359177179,1745775040401,-151.0,0.00016549,2]
[359177180,1745775040415,-151.0,0.00016549,2]
[359177181,1745775040424,-151.0,0.00016549,2]
[359177182,1745775040434,-151.0,0.00016549,2]
[359177183,1745775040443,-151.0,0.00016549,2]
[359177184,1745775040453,-236.922643,0.00016549,2]
[359177185,1745775040463,-236.922643,0.00016549,2]
[359177186,1745775040472,-151.0,0.00016549,2]
[359177187,1745775040482,-151.0,0.00016549,2]
[359177188,1745775040492,-151.0,0.00016549,2]
[359177189,1745775040502,-151.0,0.00016549,2]